[Event "Titled Tuesday Blitz August 15 Early 2023"]
[White "Ben Artzi, Ido"]
[Black "Sydoryka, Vladyslav"]
[WhiteFideId "2810913"]
[BlackFideId "14145928"]
[WhiteElo "2443"]
[BlackElo "2621"]
[Result "1-0"]
[Round "3"]
[TimeControl "180+1"]
[Date "2023.08.15"]
[WhiteClock "0:01:57"]
[BlackClock "0:01:58"]
[Board "109"]

1. d4 {[%clk 0:03:00]}  Nf6 {[%clk 0:02:56]} 2. c4 {[%clk 0:03:01]}  c5 {[%clk 0:02:56]} 3. d5 {[%clk 0:03:01]}  b5 {[%clk 0:02:56]} 4. cxb5 {[%clk 0:03:02]}  a6 {[%clk 0:02:56]} 5. bxa6 {[%clk 0:03:03]}  g6 {[%clk 0:02:57]} 6. Nc3 {[%clk 0:03:03]}  Bg7 {[%clk 0:02:58]} 7. Nf3 {[%clk 0:03:03]}  O-O {[%clk 0:02:58]} 8. a7 {[%clk 0:03:02]}  Rxa7 {[%clk 0:02:58]} 9. e4 {[%clk 0:03:03]}  d6 {[%clk 0:02:56]} 10. Be2 {[%clk 0:03:03]}  Ba6 {[%clk 0:02:55]} 11. O-O {[%clk 0:03:02]}  Nbd7 {[%clk 0:02:55]} 12. Re1 {[%clk 0:03:00]}  Ng4 {[%clk 0:02:53]} 13. a4 {[%clk 0:02:58]}  Qa8 {[%clk 0:02:40]} 14. Bxa6 {[%clk 0:02:55]}  Rxa6 {[%clk 0:02:40]} 15. Qc2 {[%clk 0:02:55]}  Rb8 {[%clk 0:02:38]} 16. Bg5 {[%clk 0:02:52]}  Kf8 {[%clk 0:02:37]} 17. Ra3 {[%clk 0:02:49]}  Rb4 {[%clk 0:02:35]} 18. b3 {[%clk 0:02:41]}  h6 {[%clk 0:02:30]} 19. Bd2 {[%clk 0:02:37]}  Nge5 {[%clk 0:02:23]} 20. Nxe5 {[%clk 0:02:36]}  Nxe5 {[%clk 0:02:22]} 21. Nb1 {[%clk 0:02:11]}  Rb7 {[%clk 0:02:10]} 22. Bc3 {[%clk 0:02:10]}  Rab6 {[%clk 0:02:05]} 23. Nd2 {[%clk 0:02:09]}  Qa6 {[%clk 0:02:02]} 24. Bxe5 {[%clk 0:02:01]}  Bxe5 {[%clk 0:02:03]} 25. Nc4 {[%clk 0:02:01]}  Rb4 {[%clk 0:02:01]} 26. Nxe5 {[%clk 0:01:56]}  dxe5 {[%clk 0:02:01]} 27. Qxc5 {[%clk 0:01:57]}  Rxb3 {[%clk 0:01:58]} 28. Qc8+ {[%clk 0:01:57]} 1-0


[Site "https://www.chess.com"]

[Event "Titled Tuesday Blitz August 15 Early 2023"]
[White "Gamayev, Oleg"]
[Black "WindWhistler11"]
[WhiteFideId "2802813"]
[WhiteElo "2620"]
[BlackElo "2438"]
[Result "1-0"]
[Round "3"]
[TimeControl "180+1"]
[Date "2023.08.15"]
[WhiteClock "0:00:32"]
[BlackClock "0:00:02"]
[Board "111"]

1. d3 {[%clk 0:03:00]}  g6 {[%clk 0:02:58]} 2. e4 {[%clk 0:03:00]}  Bg7 {[%clk 0:02:59]} 3. Nf3 {[%clk 0:03:00]}  d6 {[%clk 0:02:59]} 4. c3 {[%clk 0:03:01]}  a6 {[%clk 0:02:59]} 5. a4 {[%clk 0:03:01]}  b6 {[%clk 0:02:59]} 6. Be2 {[%clk 0:03:02]}  Bb7 {[%clk 0:02:59]} 7. O-O {[%clk 0:03:03]}  Nd7 {[%clk 0:03:00]} 8. h3 {[%clk 0:03:04]}  e6 {[%clk 0:03:00]} 9. Qc2 {[%clk 0:03:05]}  Ne7 {[%clk 0:03:00]} 10. Re1 {[%clk 0:03:05]}  c5 {[%clk 0:03:01]} 11. Nbd2 {[%clk 0:03:06]}  O-O {[%clk 0:03:01]} 12. Nc4 {[%clk 0:03:07]}  Qc7 {[%clk 0:02:57]} 13. Bf1 {[%clk 0:03:07]}  b5 {[%clk 0:02:55]} 14. axb5 {[%clk 0:03:06]}  axb5 {[%clk 0:02:56]} 15. Rxa8 {[%clk 0:03:06]}  Rxa8 {[%clk 0:02:56]} 16. Ncd2 {[%clk 0:03:07]}  Bc6 {[%clk 0:02:55]} 17. Be2 {[%clk 0:02:59]}  Qb7 {[%clk 0:02:55]} 18. Nf1 {[%clk 0:02:57]}  b4 {[%clk 0:02:51]} 19. Bd1 {[%clk 0:02:57]}  Ra1 {[%clk 0:02:40]} 20. Bg5 {[%clk 0:02:53]}  Nb6 {[%clk 0:02:28]} 21. Bxe7 {[%clk 0:02:51]}  Qxe7 {[%clk 0:02:18]} 22. cxb4 {[%clk 0:02:51]}  Ra2 {[%clk 0:02:08]} 23. bxc5 {[%clk 0:02:47]}  Rxb2 {[%clk 0:02:01]} 24. Qc1 {[%clk 0:02:47]}  dxc5 {[%clk 0:01:55]} 25. d4 {[%clk 0:02:43]}  Rb5 {[%clk 0:01:46]} 26. dxc5 {[%clk 0:02:39]}  Rxc5 {[%clk 0:01:46]} 27. Qb1 {[%clk 0:02:40]}  Nd7 {[%clk 0:01:35]} 28. Ng3 {[%clk 0:02:38]}  Bc3 {[%clk 0:01:33]} 29. Rf1 {[%clk 0:02:28]}  h5 {[%clk 0:01:28]} 30. Ne2 {[%clk 0:02:25]}  Ba5 {[%clk 0:01:28]} 31. Ned4 {[%clk 0:02:26]}  Ba8 {[%clk 0:01:20]} 32. Ba4 {[%clk 0:02:24]}  Nb6 {[%clk 0:01:18]} 33. Bb3 {[%clk 0:02:21]}  Qb7 {[%clk 0:01:16]} 34. Bxe6 {[%clk 0:02:00]}  fxe6 {[%clk 0:01:02]} 35. Nxe6 {[%clk 0:02:01]}  Rc4 {[%clk 0:00:54]} 36. Nfg5 {[%clk 0:01:52]}  Bd2 {[%clk 0:00:36]} 37. Qb3 {[%clk 0:01:45]}  Bxg5 {[%clk 0:00:35]} 38. Nxg5 {[%clk 0:01:44]}  Qe7 {[%clk 0:00:34]} 39. Qxb6 {[%clk 0:01:35]}  Bxe4 {[%clk 0:00:31]} 40. Nxe4 {[%clk 0:01:26]}  Qxe4 {[%clk 0:00:32]} 41. Rd1 {[%clk 0:01:20]}  Rb4 {[%clk 0:00:23]} 42. Qd8+ {[%clk 0:01:16]}  Kg7 {[%clk 0:00:24]} 43. Rd7+ {[%clk 0:01:13]}  Kh6 {[%clk 0:00:25]} 44. Qf8+ {[%clk 0:01:01]}  Kg5 {[%clk 0:00:24]} 45. h4+ {[%clk 0:00:58]}  Kxh4 {[%clk 0:00:18]} 46. Kh2 {[%clk 0:00:32]}  Qf4+ {[%clk 0:00:02]} 47. g3+ {[%clk 0:00:32]} 1-0


[Site "https://www.chess.com"]

[Event "Titled Tuesday Blitz August 15 Early 2023"]
[White "TomLiu777"]
[Black "Belov, Alexei"]
[BlackFideId "4128206"]
[WhiteElo "2431"]
[BlackElo "2610"]
[Result "1/2-1/2"]
[Round "3"]
[TimeControl "180+1"]
[Date "2023.08.15"]
[WhiteClock "0:00:04"]
[BlackClock "0:00:16"]
[Board "115"]

1. c4 {[%clk 0:03:00]}  e6 {[%clk 0:03:00]} 2. Nc3 {[%clk 0:02:54]}  d5 {[%clk 0:03:00]} 3. d4 {[%clk 0:02:54]}  Be7 {[%clk 0:03:00]} 4. cxd5 {[%clk 0:02:54]}  exd5 {[%clk 0:03:00]} 5. Bf4 {[%clk 0:02:55]}  c6 {[%clk 0:03:01]} 6. e3 {[%clk 0:02:55]}  Bf5 {[%clk 0:03:01]} 7. Nge2 {[%clk 0:02:54]}  Nd7 {[%clk 0:03:00]} 8. h4 {[%clk 0:02:54]}  h5 {[%clk 0:02:57]} 9. Ng3 {[%clk 0:02:54]}  Bg6 {[%clk 0:02:57]} 10. Bd3 {[%clk 0:02:54]}  Bxd3 {[%clk 0:02:53]} 11. Qxd3 {[%clk 0:02:55]}  g6 {[%clk 0:02:54]} 12. e4 {[%clk 0:02:51]}  dxe4 {[%clk 0:02:35]} 13. Ngxe4 {[%clk 0:02:51]}  Ndf6 {[%clk 0:02:34]} 14. O-O-O {[%clk 0:02:48]}  Nd5 {[%clk 0:02:26]} 15. Bg5 {[%clk 0:02:21]}  Bxg5+ {[%clk 0:02:15]} 16. hxg5 {[%clk 0:02:22]}  Nge7 {[%clk 0:02:14]} 17. Nf6+ {[%clk 0:02:20]}  Kf8 {[%clk 0:02:06]} 18. g4 {[%clk 0:02:12]}  h4 {[%clk 0:02:02]} 19. Qf3 {[%clk 0:01:57]}  Nxc3 {[%clk 0:01:57]} 20. Qxc3 {[%clk 0:01:54]}  Nd5 {[%clk 0:01:57]} 21. Qf3 {[%clk 0:01:48]}  Kg7 {[%clk 0:01:52]} 22. Nxd5 {[%clk 0:01:31]}  Qxd5 {[%clk 0:01:42]} 23. Qf6+ {[%clk 0:01:30]}  Kg8 {[%clk 0:01:42]} 24. f4 {[%clk 0:01:20]}  Re8 {[%clk 0:01:04]} 25. Rhe1 {[%clk 0:01:10]}  Re6 {[%clk 0:00:59]} 26. Rxe6 {[%clk 0:01:05]}  Qxe6 {[%clk 0:00:59]} 27. Qxe6 {[%clk 0:00:50]}  fxe6 {[%clk 0:00:59]} 28. Kd2 {[%clk 0:00:48]}  Kf7 {[%clk 0:00:43]} 29. Ke3 {[%clk 0:00:48]}  h3 {[%clk 0:00:42]} 30. Rh1 {[%clk 0:00:45]}  Ke7 {[%clk 0:00:38]} 31. Kf3 {[%clk 0:00:43]}  Kd6 {[%clk 0:00:38]} 32. Kg3 {[%clk 0:00:34]}  Kd5 {[%clk 0:00:36]} 33. Rxh3 {[%clk 0:00:33]}  Rxh3+ {[%clk 0:00:32]} 34. Kxh3 {[%clk 0:00:34]}  Ke4 {[%clk 0:00:27]} 35. Kg3 {[%clk 0:00:34]}  Ke3 {[%clk 0:00:27]} 36. f5 {[%clk 0:00:33]}  exf5 {[%clk 0:00:27]} 37. gxf5 {[%clk 0:00:33]}  gxf5 {[%clk 0:00:27]} 38. g6 {[%clk 0:00:34]}  f4+ {[%clk 0:00:28]} 39. Kg2 {[%clk 0:00:22]}  Ke2 {[%clk 0:00:28]} 40. g7 {[%clk 0:00:21]}  f3+ {[%clk 0:00:28]} 41. Kg3 {[%clk 0:00:21]}  f2 {[%clk 0:00:27]} 42. g8=Q {[%clk 0:00:20]}  f1=Q {[%clk 0:00:28]} 43. Qc4+ {[%clk 0:00:20]}  Ke1 {[%clk 0:00:27]} 44. Qxf1+ {[%clk 0:00:19]}  Kxf1 {[%clk 0:00:27]} 45. Kf3 {[%clk 0:00:18]}  Ke1 {[%clk 0:00:28]} 46. Ke3 {[%clk 0:00:16]}  Kd1 {[%clk 0:00:28]} 47. Kd3 {[%clk 0:00:16]}  Kc1 {[%clk 0:00:28]} 48. Kc3 {[%clk 0:00:16]}  Kb1 {[%clk 0:00:25]} 49. a4 {[%clk 0:00:15]}  Ka2 {[%clk 0:00:24]} 50. b3 {[%clk 0:00:07]}  a5 {[%clk 0:00:21]} 51. b4 {[%clk 0:00:06]}  Ka3 {[%clk 0:00:20]} 52. b5 {[%clk 0:00:04]}  Kxa4 {[%clk 0:00:20]} 53. bxc6 {[%clk 0:00:04]}  bxc6 {[%clk 0:00:20]} 54. Kc4 {[%clk 0:00:04]}  Ka3 {[%clk 0:00:17]} 55. Kc5 {[%clk 0:00:04]}  Kb3 {[%clk 0:00:17]} 56. Kxc6 {[%clk 0:00:04]}  a4 {[%clk 0:00:17]} 57. d5 {[%clk 0:00:04]}  a3 {[%clk 0:00:18]} 58. d6 {[%clk 0:00:04]}  a2 {[%clk 0:00:19]} 59. d7 {[%clk 0:00:05]}  a1=Q {[%clk 0:00:19]} 60. d8=Q {[%clk 0:00:03]}  Qa6+ {[%clk 0:00:18]} 61. Kd7 {[%clk 0:00:03]}  Qb5+ {[%clk 0:00:18]} 62. Kc7 {[%clk 0:00:03]}  Qa5+ {[%clk 0:00:18]} 63. Kd7 {[%clk 0:00:04]}  Qc5 {[%clk 0:00:17]} 64. Qc7 {[%clk 0:00:04]}  Qxc7+ {[%clk 0:00:16]} 65. Kxc7 {[%clk 0:00:04]} 1/2-1/2


[Site "https://www.chess.com"]

[Event "Titled Tuesday Blitz August 15 Early 2023"]
[White "Budrewicz, Krzysztof"]
[Black "Akylbekov, Nasyr"]
[WhiteFideId "1127950"]
[BlackFideId "13800353"]
[WhiteElo "2607"]
[BlackElo "2429"]
[Result "1-0"]
[Round "3"]
[TimeControl "180+1"]
[Date "2023.08.15"]
[WhiteClock "0:00:11"]
[BlackClock "0:00:02"]
[Board "116"]

1. d4 {[%clk 0:03:00]}  Nf6 {[%clk 0:02:59]} 2. c4 {[%clk 0:03:00]}  e6 {[%clk 0:02:59]} 3. Nf3 {[%clk 0:03:00]}  Bb4+ {[%clk 0:03:00]} 4. Bd2 {[%clk 0:03:00]}  Qe7 {[%clk 0:03:01]} 5. g3 {[%clk 0:02:59]}  b6 {[%clk 0:03:01]} 6. Bg2 {[%clk 0:03:00]}  Bb7 {[%clk 0:03:01]} 7. O-O {[%clk 0:03:00]}  O-O {[%clk 0:03:01]} 8. Nc3 {[%clk 0:03:00]}  Ne4 {[%clk 0:02:57]} 9. Be1 {[%clk 0:02:55]}  Bxc3 {[%clk 0:02:56]} 10. bxc3 {[%clk 0:02:55]}  c5 {[%clk 0:02:56]} 11. a4 {[%clk 0:02:53]}  d6 {[%clk 0:02:53]} 12. a5 {[%clk 0:02:53]}  Nd7 {[%clk 0:02:53]} 13. axb6 {[%clk 0:02:53]}  axb6 {[%clk 0:02:53]} 14. Rxa8 {[%clk 0:02:52]}  Bxa8 {[%clk 0:02:51]} 15. Qc2 {[%clk 0:02:50]}  f5 {[%clk 0:02:50]} 16. Nd2 {[%clk 0:02:46]}  Ndf6 {[%clk 0:02:46]} 17. f3 {[%clk 0:02:44]}  Nxd2 {[%clk 0:02:42]} 18. Bxd2 {[%clk 0:02:44]}  d5 {[%clk 0:02:43]} 19. cxd5 {[%clk 0:02:44]}  exd5 {[%clk 0:02:42]} 20. e3 {[%clk 0:02:37]}  Bc6 {[%clk 0:02:36]} 21. Rb1 {[%clk 0:02:35]}  b5 {[%clk 0:02:30]} 22. Bf1 {[%clk 0:02:26]}  c4 {[%clk 0:02:24]} 23. Rb2 {[%clk 0:02:16]}  Bd7 {[%clk 0:02:23]} 24. Ra2 {[%clk 0:02:07]}  g5 {[%clk 0:02:07]} 25. Ra7 {[%clk 0:01:56]}  Rf7 {[%clk 0:02:06]} 26. Qb1 {[%clk 0:01:52]}  g4 {[%clk 0:01:58]} 27. f4 {[%clk 0:01:47]}  Ne4 {[%clk 0:01:49]} 28. Be1 {[%clk 0:01:47]}  Nxc3 {[%clk 0:01:47]} 29. Qc1 {[%clk 0:01:32]}  Ne4 {[%clk 0:01:46]} 30. Ba5 {[%clk 0:01:24]}  b4 {[%clk 0:01:44]} 31. Rb7 {[%clk 0:01:17]}  b3 {[%clk 0:01:41]} 32. Rb8+ {[%clk 0:01:16]}  Rf8 {[%clk 0:01:32]} 33. Bb4 {[%clk 0:01:15]}  Nd6 {[%clk 0:01:30]} 34. Rb6 {[%clk 0:01:11]}  Rf6 {[%clk 0:01:26]} 35. Bg2 {[%clk 0:01:12]}  b2 {[%clk 0:01:18]} 36. Bxd5+ {[%clk 0:01:11]}  Kg7 {[%clk 0:01:17]} 37. Qxb2 {[%clk 0:01:11]}  Qxe3+ {[%clk 0:01:16]} 38. Kg2 {[%clk 0:01:09]}  Ne4 {[%clk 0:01:11]} 39. Rxf6 {[%clk 0:01:04]}  Nxf6 {[%clk 0:00:59]} 40. Ba8 {[%clk 0:01:00]}  Kg6 {[%clk 0:00:31]} 41. Qd2 {[%clk 0:00:55]}  Qb3 {[%clk 0:00:26]} 42. Kf2 {[%clk 0:00:45]}  Be6 {[%clk 0:00:21]} 43. Bg2 {[%clk 0:00:24]}  Bd5 {[%clk 0:00:22]} 44. Bxd5 {[%clk 0:00:17]}  Nxd5 {[%clk 0:00:21]} 45. Ba5 {[%clk 0:00:17]}  Nf6 {[%clk 0:00:20]} 46. Qb4 {[%clk 0:00:12]}  Ne4+ {[%clk 0:00:18]} 47. Kf1 {[%clk 0:00:11]}  Qf3+ {[%clk 0:00:16]} 48. Ke1 {[%clk 0:00:10]}  Qf2+ {[%clk 0:00:11]} 49. Kd1 {[%clk 0:00:11]}  c3 {[%clk 0:00:11]} 50. Qb6+ {[%clk 0:00:10]}  Kh5 {[%clk 0:00:11]} 51. Bxc3 {[%clk 0:00:09]}  Nxc3+ {[%clk 0:00:11]} 52. Kc1 {[%clk 0:00:09]}  Ne4 {[%clk 0:00:10]} 53. Qe6 {[%clk 0:00:08]}  Qd2+ {[%clk 0:00:10]} 54. Kb1 {[%clk 0:00:09]}  Nc3+ {[%clk 0:00:10]} 55. Ka1 {[%clk 0:00:10]}  Qa2+ {[%clk 0:00:11]} 56. Qxa2 {[%clk 0:00:09]}  Nxa2 {[%clk 0:00:10]} 57. Kxa2 {[%clk 0:00:10]}  Kg6 {[%clk 0:00:11]} 58. Kb3 {[%clk 0:00:11]}  Kf6 {[%clk 0:00:11]} 59. Kc4 {[%clk 0:00:11]}  Ke6 {[%clk 0:00:02]} 60. d5+ {[%clk 0:00:11]} 1-0


[Site "https://www.chess.com"]

[Event "Titled Tuesday Blitz August 15 Early 2023"]
[White "Gulkov, Igor A."]
[Black "Bilan, Danila"]
[WhiteFideId "4120973"]
[BlackFideId "24161918"]
[WhiteElo "2429"]
[BlackElo "2605"]
[Result "1/2-1/2"]
[Round "3"]
[TimeControl "180+1"]
[Date "2023.08.15"]
[WhiteClock "0:00:08"]
[BlackClock "0:00:04"]
[Board "117"]

1. Nf3 {[%clk 0:03:00]}  d5 {[%clk 0:02:58]} 2. d4 {[%clk 0:03:00]}  Nf6 {[%clk 0:02:58]} 3. c4 {[%clk 0:03:00]}  c6 {[%clk 0:02:59]} 4. e3 {[%clk 0:02:59]}  e6 {[%clk 0:02:54]} 5. Bd3 {[%clk 0:02:57]}  Nbd7 {[%clk 0:02:54]} 6. O-O {[%clk 0:02:56]}  Ne4 {[%clk 0:02:47]} 7. Nbd2 {[%clk 0:02:54]}  f5 {[%clk 0:02:45]} 8. Qc2 {[%clk 0:02:54]}  Bd6 {[%clk 0:02:43]} 9. b3 {[%clk 0:02:44]}  O-O {[%clk 0:02:37]} 10. a4 {[%clk 0:02:41]}  a5 {[%clk 0:02:31]} 11. Ba3 {[%clk 0:02:39]}  Qe7 {[%clk 0:02:18]} 12. Bxd6 {[%clk 0:02:37]}  Qxd6 {[%clk 0:02:19]} 13. Qb2 {[%clk 0:02:37]}  b6 {[%clk 0:01:43]} 14. Rfc1 {[%clk 0:02:07]}  Bb7 {[%clk 0:01:42]} 15. Rc2 {[%clk 0:01:59]}  c5 {[%clk 0:01:32]} 16. cxd5 {[%clk 0:01:45]}  exd5 {[%clk 0:00:55]} 17. Bb5 {[%clk 0:01:36]}  f4 {[%clk 0:00:44]} 18. Bxd7 {[%clk 0:00:58]}  Qxd7 {[%clk 0:00:42]} 19. Ne5 {[%clk 0:00:52]}  Qf5 {[%clk 0:00:31]} 20. Nxe4 {[%clk 0:00:47]}  dxe4 {[%clk 0:00:18]} 21. dxc5 {[%clk 0:00:42]}  bxc5 {[%clk 0:00:17]} 22. Rxc5 {[%clk 0:00:32]}  f3 {[%clk 0:00:14]} 23. Rc7 {[%clk 0:00:22]}  Bd5 {[%clk 0:00:08]} 24. Nxf3 {[%clk 0:00:18]}  Rf7 {[%clk 0:00:04]} 25. Rxf7 {[%clk 0:00:17]}  Bxf7 {[%clk 0:00:04]} 26. Nd4 {[%clk 0:00:16]}  Qd5 {[%clk 0:00:02]} 27. b4 {[%clk 0:00:16]}  axb4 {[%clk 0:00:02]} 28. Qxb4 {[%clk 0:00:16]}  h6 {[%clk 0:00:02]} 29. a5 {[%clk 0:00:16]}  Ra7 {[%clk 0:00:01]} 30. a6 {[%clk 0:00:16]}  Kh7 {[%clk 0:00:01]} 31. Qb6 {[%clk 0:00:15]}  Qd7 {[%clk 0:00:01]} 32. h3 {[%clk 0:00:13]}  Bc4 {[%clk 0:00:02]} 33. Qc5 {[%clk 0:00:12]}  Bd3 {[%clk 0:00:02]} 34. Qf5+ {[%clk 0:00:06]}  Qxf5 {[%clk 0:00:02]} 35. Nxf5 {[%clk 0:00:07]}  Rxa6 {[%clk 0:00:03]} 36. Rxa6 {[%clk 0:00:06]}  Bxa6 {[%clk 0:00:04]} 37. Kh2 {[%clk 0:00:06]}  Kg6 {[%clk 0:00:04]} 38. Nd6 {[%clk 0:00:06]}  Bd3 {[%clk 0:00:04]} 39. Nb7 {[%clk 0:00:05]}  Kf6 {[%clk 0:00:04]} 40. Nc5 {[%clk 0:00:06]}  Bc2 {[%clk 0:00:04]} 41. f3 {[%clk 0:00:06]}  exf3 {[%clk 0:00:04]} 42. gxf3 {[%clk 0:00:06]}  Ke5 {[%clk 0:00:05]} 43. Kg3 {[%clk 0:00:07]}  g6 {[%clk 0:00:05]} 44. e4 {[%clk 0:00:06]}  Bb1 {[%clk 0:00:06]} 45. h4 {[%clk 0:00:07]}  Kd4 {[%clk 0:00:06]} 46. Ne6+ {[%clk 0:00:06]}  Ke5 {[%clk 0:00:06]} 47. Nf4 {[%clk 0:00:07]}  Kf6 {[%clk 0:00:06]} 48. Ne2 {[%clk 0:00:07]}  Bc2 {[%clk 0:00:05]} 49. Kf4 {[%clk 0:00:08]}  Bb1 {[%clk 0:00:03]} 50. Ke3 {[%clk 0:00:07]}  Ba2 {[%clk 0:00:02]} 51. f4 {[%clk 0:00:07]}  g5 {[%clk 0:00:03]} 52. hxg5+ {[%clk 0:00:07]}  hxg5 {[%clk 0:00:04]} 53. f5 {[%clk 0:00:08]}  Bb1 {[%clk 0:00:04]} 54. Nd4 {[%clk 0:00:08]}  Ke5 {[%clk 0:00:03]} 55. Nf3+ {[%clk 0:00:08]}  Kf6 {[%clk 0:00:04]} 56. Kf2 {[%clk 0:00:07]}  Bxe4 {[%clk 0:00:03]} 57. Nxg5 {[%clk 0:00:08]}  Kxg5 {[%clk 0:00:03]} 58. f6 {[%clk 0:00:08]}  Kxf6 {[%clk 0:00:04]} 1/2-1/2


[Site "https://www.chess.com"]

[Event "Titled Tuesday Blitz August 15 Early 2023"]
[White "HamedWafa4"]
[Black "Nathan, Nitish"]
[BlackFideId "30927870"]
[WhiteElo "2605"]
[BlackElo "2427"]
[Result "0-1"]
[Round "3"]
[TimeControl "180+1"]
[Date "2023.08.15"]
[WhiteClock "0:00:00"]
[BlackClock "0:01:02"]
[Board "118"]

1. e4 {[%clk 0:03:00]}  c5 {[%clk 0:02:59]} 2. Nf3 {[%clk 0:02:59]}  Nc6 {[%clk 0:02:59]} 3. Bb5 {[%clk 0:02:52]}  e6 {[%clk 0:02:58]} 4. Bxc6 {[%clk 0:02:50]}  bxc6 {[%clk 0:02:57]} 5. O-O {[%clk 0:02:50]}  Ne7 {[%clk 0:02:55]} 6. b3 {[%clk 0:02:49]}  d6 {[%clk 0:02:54]} 7. Bb2 {[%clk 0:02:47]}  e5 {[%clk 0:02:53]} 8. c3 {[%clk 0:02:47]}  Ng6 {[%clk 0:02:53]} 9. d4 {[%clk 0:02:47]}  cxd4 {[%clk 0:02:52]} 10. cxd4 {[%clk 0:02:47]}  f6 {[%clk 0:02:51]} 11. Na3 {[%clk 0:02:43]}  Be7 {[%clk 0:02:49]} 12. Rc1 {[%clk 0:02:43]}  Bd7 {[%clk 0:02:46]} 13. Nc4 {[%clk 0:02:42]}  O-O {[%clk 0:02:39]} 14. h3 {[%clk 0:02:26]}  Qe8 {[%clk 0:02:30]} 15. dxe5 {[%clk 0:02:19]}  dxe5 {[%clk 0:01:59]} 16. Nd6 {[%clk 0:02:13]}  Bxd6 {[%clk 0:01:58]} 17. Qxd6 {[%clk 0:02:14]}  Rd8 {[%clk 0:01:56]} 18. Rfd1 {[%clk 0:01:51]}  Nf4 {[%clk 0:01:52]} 19. Rc2 {[%clk 0:01:31]}  Qg6 {[%clk 0:01:46]} 20. Nh4 {[%clk 0:01:11]}  Qh5 {[%clk 0:01:39]} 21. g3 {[%clk 0:01:03]}  Nxh3+ {[%clk 0:01:35]} 22. Kf1 {[%clk 0:01:02]}  Ng5 {[%clk 0:01:30]} 23. Kg1 {[%clk 0:00:54]}  Nxe4 {[%clk 0:01:24]} 24. Qd3 {[%clk 0:00:45]}  Ng5 {[%clk 0:01:19]} 25. Qc4+ {[%clk 0:00:42]}  Be6 {[%clk 0:01:16]} 26. Rxd8 {[%clk 0:00:31]}  Rxd8 {[%clk 0:01:17]} 27. Qxc6 {[%clk 0:00:23]}  Qd1+ {[%clk 0:01:08]} 28. Kh2 {[%clk 0:00:21]}  Bd5 {[%clk 0:01:07]} 29. Qxd5+ {[%clk 0:00:02]}  Qxd5 {[%clk 0:01:05]} 30. Rc7 {[%clk 0:00:00]}  Qd2 {[%clk 0:01:02]} 0-1


[Site "https://www.chess.com"]

[Event "Titled Tuesday Blitz August 15 Early 2023"]
[White "Miszler, Levente"]
[Black "Papayan, Oleg"]
[WhiteFideId "763276"]
[BlackFideId "4193911"]
[WhiteElo "2426"]
[BlackElo "2605"]
[Result "0-1"]
[Round "3"]
[TimeControl "180+1"]
[Date "2023.08.15"]
[WhiteClock "0:00:03"]
[BlackClock "0:00:07"]
[Board "119"]

1. Nf3 {[%clk 0:02:51]}  Nf6 {[%clk 0:02:57]} 2. c4 {[%clk 0:02:52]}  e6 {[%clk 0:02:57]} 3. g3 {[%clk 0:02:52]}  d5 {[%clk 0:02:58]} 4. Bg2 {[%clk 0:02:53]}  dxc4 {[%clk 0:02:58]} 5. O-O {[%clk 0:02:53]}  c6 {[%clk 0:02:58]} 6. a4 {[%clk 0:02:53]}  Nbd7 {[%clk 0:02:53]} 7. Na3 {[%clk 0:02:50]}  Bxa3 {[%clk 0:02:50]} 8. Rxa3 {[%clk 0:02:51]}  O-O {[%clk 0:02:47]} 9. Qc2 {[%clk 0:02:48]}  b5 {[%clk 0:02:48]} 10. axb5 {[%clk 0:02:38]}  cxb5 {[%clk 0:02:49]} 11. Nd4 {[%clk 0:02:38]}  Nd5 {[%clk 0:02:49]} 12. Nxb5 {[%clk 0:02:34]}  Qb6 {[%clk 0:02:40]} 13. Nc3 {[%clk 0:02:22]}  Bb7 {[%clk 0:02:39]} 14. b3 {[%clk 0:02:20]}  Nb4 {[%clk 0:02:23]} 15. Qb1 {[%clk 0:02:13]}  Bxg2 {[%clk 0:02:23]} 16. Kxg2 {[%clk 0:02:14]}  cxb3 {[%clk 0:02:19]} 17. Qxb3 {[%clk 0:02:12]}  a5 {[%clk 0:02:18]} 18. Na4 {[%clk 0:02:09]}  Qc6+ {[%clk 0:02:17]} 19. Kg1 {[%clk 0:02:09]}  Rfc8 {[%clk 0:02:04]} 20. Bb2 {[%clk 0:02:08]}  Qc2 {[%clk 0:02:01]} 21. Bc3 {[%clk 0:02:03]}  Qe4 {[%clk 0:01:53]} 22. Re1 {[%clk 0:01:28]}  Nd3 {[%clk 0:01:24]} 23. Qb1 {[%clk 0:01:26]}  N3c5 {[%clk 0:01:03]} 24. Nxc5 {[%clk 0:01:22]}  Nxc5 {[%clk 0:01:04]} 25. Rxa5 {[%clk 0:01:15]}  Rxa5 {[%clk 0:00:41]} 26. Bxa5 {[%clk 0:01:16]}  Qd5 {[%clk 0:00:37]} 27. Rc1 {[%clk 0:01:10]}  Ra8 {[%clk 0:00:34]} 28. Qb5 {[%clk 0:01:06]}  Nb3 {[%clk 0:00:30]} 29. Qxd5 {[%clk 0:00:43]}  exd5 {[%clk 0:00:31]} 30. Rb1 {[%clk 0:00:43]}  Nxa5 {[%clk 0:00:29]} 31. Rb5 {[%clk 0:00:43]}  d4 {[%clk 0:00:30]} 32. Rd5 {[%clk 0:00:38]}  Nb3 {[%clk 0:00:24]} 33. e3 {[%clk 0:00:37]}  Nxd2 {[%clk 0:00:22]} 34. exd4 {[%clk 0:00:34]}  h6 {[%clk 0:00:12]} 35. Kg2 {[%clk 0:00:34]}  g5 {[%clk 0:00:13]} 36. g4 {[%clk 0:00:33]}  Kg7 {[%clk 0:00:13]} 37. h3 {[%clk 0:00:34]}  Kg6 {[%clk 0:00:13]} 38. Rd6+ {[%clk 0:00:34]}  f6 {[%clk 0:00:13]} 39. Rd7 {[%clk 0:00:34]}  Ra2 {[%clk 0:00:13]} 40. Re7 {[%clk 0:00:31]}  Nc4 {[%clk 0:00:10]} 41. Kg3 {[%clk 0:00:25]}  Rd2 {[%clk 0:00:10]} 42. h4 {[%clk 0:00:25]}  gxh4+ {[%clk 0:00:08]} 43. Kxh4 {[%clk 0:00:23]}  Rxd4 {[%clk 0:00:09]} 44. Kg3 {[%clk 0:00:22]}  Rd3+ {[%clk 0:00:08]} 45. Kg2 {[%clk 0:00:20]}  Ne5 {[%clk 0:00:07]} 46. Re8 {[%clk 0:00:16]}  Nxg4 {[%clk 0:00:06]} 47. Rg8+ {[%clk 0:00:16]}  Kf5 {[%clk 0:00:07]} 48. Rh8 {[%clk 0:00:17]}  Rd2 {[%clk 0:00:07]} 49. Kg3 {[%clk 0:00:16]}  Rxf2 {[%clk 0:00:06]} 50. Ra8 {[%clk 0:00:16]}  h5 {[%clk 0:00:04]} 51. Ra5+ {[%clk 0:00:16]}  Kg6 {[%clk 0:00:05]} 52. Kh4 {[%clk 0:00:12]}  Rf5 {[%clk 0:00:04]} 53. Ra8 {[%clk 0:00:10]}  Rg5 {[%clk 0:00:04]} 54. Ra2 {[%clk 0:00:07]}  Nh6 {[%clk 0:00:04]} 55. Kh3 {[%clk 0:00:06]}  Nf5 {[%clk 0:00:05]} 56. Ra8 {[%clk 0:00:04]}  Rg3+ {[%clk 0:00:05]} 57. Kh2 {[%clk 0:00:05]}  h4 {[%clk 0:00:05]} 58. Rg8+ {[%clk 0:00:05]}  Kh5 {[%clk 0:00:06]} 59. Rh8+ {[%clk 0:00:05]}  Kg4 {[%clk 0:00:07]} 60. Ra8 {[%clk 0:00:06]}  Rf3 {[%clk 0:00:04]} 61. Ra4+ {[%clk 0:00:06]}  Rf4 {[%clk 0:00:05]} 62. Ra3 {[%clk 0:00:06]}  Rf2+ {[%clk 0:00:04]} 63. Kg1 {[%clk 0:00:05]}  Rf3 {[%clk 0:00:05]} 64. Ra2 {[%clk 0:00:04]}  Kg3 {[%clk 0:00:05]} 65. Rg2+ {[%clk 0:00:04]}  Kf4 {[%clk 0:00:05]} 66. Ra2 {[%clk 0:00:04]}  Ne3 {[%clk 0:00:06]} 67. Kh1 {[%clk 0:00:04]}  Rf1+ {[%clk 0:00:05]} 68. Kh2 {[%clk 0:00:05]}  Rf3 {[%clk 0:00:05]} 69. Kh1 {[%clk 0:00:05]}  f5 {[%clk 0:00:05]} 70. Ra4+ {[%clk 0:00:04]}  Kg5 {[%clk 0:00:06]} 71. Ra2 {[%clk 0:00:04]}  Ng4 {[%clk 0:00:06]} 72. Rg2 {[%clk 0:00:04]}  Rh3+ {[%clk 0:00:06]} 73. Kg1 {[%clk 0:00:03]}  Rg3 {[%clk 0:00:07]} 74. Kh1 {[%clk 0:00:02]}  Rxg2 {[%clk 0:00:06]} 75. Kxg2 {[%clk 0:00:03]}  Kf4 {[%clk 0:00:07]} 76. Kh3 {[%clk 0:00:03]}  Ke3 {[%clk 0:00:07]} 77. Kg2 {[%clk 0:00:04]}  f4 {[%clk 0:00:07]} 78. Kg1 {[%clk 0:00:05]}  f3 {[%clk 0:00:08]} 79. Kf1 {[%clk 0:00:06]}  f2 {[%clk 0:00:07]} 80. Kg2 {[%clk 0:00:03]}  Ke2 {[%clk 0:00:07]} 0-1


[Site "https://www.chess.com"]